bitfinex/quotes_BTCUSD_20250320
["timestamp","ask_amount","ask_price","bid_price","bid_amount"]
[1742470092003,0.234137,85420.0,85414.0,0.002]
[1742470092175,0.011707,85418.0,85413.0,0.011707]
[1742470092551,0.245852,85418.0,85415.0,0.001]
[1742470092699,0.24584,85422.0,85415.0,0.23515]
[1742470093037,0.234138,85420.0,85416.0,0.234146]
[1742470093262,0.234141,85419.0,85414.0,0.011707]
[1742470093951,0.234141,85419.0,85414.0,0.245858]
[1742470094392,0.245847,85419.0,85414.0,0.012707]
[1742470094605,0.01835953,85418.0,85417.0,0.245852]
[1742470096215,0.01835953,85418.0,85417.0,0.247852]
[1742470096750,0.01835953,85418.0,85417.0,0.249852]
[1742470097648,0.01835953,85418.0,85417.0,0.36942703]
[1742470098918,0.01835953,85418.0,85417.0,0.36742703]
[1742470099213,0.01835953,85418.0,85417.0,0.37242703]
[1742470099599,0.01835953,85418.0,85417.0,0.37042703]
[1742470099807,0.01835953,85418.0,85417.0,0.37542703]
[1742470101651,0.01869833,85418.0,85417.0,0.79032663]
[1742470118627,0.0003388,85418.0,85417.0,0.4248996]
[1742470119056,0.0003388,85418.0,85417.0,0.01]
[1742470119555,0.0003388,85418.0,85415.0,0.245856]
[1742470119712,0.0003388,85418.0,85417.0,0.004]
[1742470119912,0.0003388,85418.0,85417.0,0.018707]
[1742470120539,0.0003388,85418.0,85417.0,0.014707]
[1742470121338,0.0003388,85418.0,85417.0,0.01704813]
[1742470121515,0.01869701,85418.0,85417.0,0.014707]
[1742470122515,0.01869701,85418.0,85417.0,0.018707]
[1742470122644,0.01869701,85418.0,85417.0,0.13828203]
[1742470124313,0.0003388,85418.0,85417.0,0.13828203]
[1742470124978,0.0003388,85418.0,85417.0,0.55318163]
[1742470127153,0.01869704,85418.0,85417.0,0.55318163]
[1742470133822,0.01869704,85418.0,85417.0,0.4218996]
[1742470134029,0.0003388,85418.0,85417.0,0.4218996]
[1742470134392,0.0003388,85418.0,85417.0,0.4336066]
[1742470136879,0.01869682,85418.0,85417.0,0.4336066]
[1742470140622,0.0003388,85418.0,85417.0,0.4336066]
[1742470142415,0.0003388,85418.0,85417.0,0.55318163]
[1742470144021,0.01869682,85418.0,85417.0,0.55318163]
[1742470145066,0.01869682,85418.0,85417.0,0.99816248]
[1742470145468,0.0003388,85429.0,85428.0,0.54582]
[1742470145692,0.0003388,85429.0,85428.0,2.25843588]
[1742470145855,0.0003388,85429.0,85428.0,2.29497573]
[1742470146211,0.0003388,85429.0,85428.0,2.25843588]
[1742470147253,0.0003388,85429.0,85428.0,2.26443588]
[1742470147367,0.0003388,85429.0,85428.0,2.27043588]
[1742470148392,0.0003388,85429.0,85428.0,2.68533548]
[1742470150358,0.0003388,85429.0,85428.0,2.70934062]
[1742470151366,8e-07,85429.0,85428.0,2.70934062]
[1742470151554,8e-07,85429.0,85428.0,2.71434062]
[1742470151761,8e-07,85429.0,85428.0,2.77580087]
[1742470152044,8e-07,85429.0,85428.0,2.73934062]
[1742470152314,8e-07,85429.0,85428.0,2.74823785]
[1742470153387,8e-07,85429.0,85428.0,2.72323785]
[1742470153595,8e-07,85429.0,85428.0,2.87863785]
[1742470155039,8e-07,85429.0,85428.0,2.89027348]
[1742470155845,8e-07,85429.0,85428.0,2.99498301]
[1742470157264,8e-07,85429.0,85428.0,2.88648301]
[1742470157477,8e-07,85429.0,85428.0,2.91148301]
[1742470158645,8e-07,85429.0,85428.0,3.46868301]
[1742470159142,8e-07,85429.0,85428.0,3.36397348]
[1742470160556,8e-07,85429.0,85428.0,3.36431228]
[1742470164525,8e-07,85429.0,85428.0,3.19437143]
[1742470164670,8e-07,85429.0,85428.0,3.32457143]
[1742470164886,8e-07,85429.0,85428.0,3.30056629]
[1742470165282,8e-07,85429.0,85428.0,3.28893066]
[1742470165488,8e-07,85429.0,85428.0,1.78293066]
[1742470165924,8e-07,85429.0,85428.0,3.28893066]
[1742470166102,8e-07,85429.0,85428.0,3.28293066]
[1742470166302,8e-07,85429.0,85428.0,3.28893066]
[1742470166509,8e-07,85429.0,85428.0,3.28293066]
[1742470166786,8e-07,85429.0,85428.0,3.28893066]
[1742470167286,8e-07,85429.0,85428.0,3.28293066]
[1742470167733,0.0183547,85429.0,85428.0,3.28893066]
[1742470171576,0.0183547,85429.0,85428.0,1.78893066]
[1742470173139,0.0183547,85429.0,85428.0,1.80347151]
[1742470173750,0.0183547,85429.0,85428.0,3.30347151]
[1742470175878,8e-07,85429.0,85428.0,3.30347151]
[1742470179180,8e-07,85429.0,85428.0,3.32687852]
[1742470184358,8e-07,85429.0,85428.0,3.37297852]
[1742470184557,8e-07,85429.0,85428.0,3.49270321]
[1742470185290,8e-07,85429.0,85428.0,3.51770321]
[1742470185459,8e-07,85429.0,85428.0,3.51170321]
[1742470186052,8e-07,85429.0,85428.0,3.51770321]
[1742470186551,8e-07,85429.0,85428.0,4.21350321]
[1742470192458,8e-07,85429.0,85428.0,3.52270321]
[1742470195495,8e-07,85429.0,85428.0,3.51830321]
[1742470196401,8e-07,85429.0,85428.0,3.43950321]
[1742470198359,6.346e-05,85433.0,85432.0,0.011705]
[1742470198521,6.346e-05,85433.0,85432.0,0.89724437]
[1742470199145,6.346e-05,85433.0,85432.0,2.39724437]
[1742470199688,6.346e-05,85433.0,85432.0,2.40324437]
[1742470200900,6.346e-05,85433.0,85432.0,2.37271968]
[1742470201107,6.346e-05,85433.0,85432.0,2.48829883]
[1742470201313,6.346e-05,85433.0,85432.0,2.50283968]
[1742470201512,6.346e-05,85433.0,85432.0,2.08794088]
[1742470201958,6.346e-05,85433.0,85432.0,2.08194088]
[1742470202387,0.07816346,85433.0,85432.0,0.44328003]
[1742470202551,0.07816346,85433.0,85432.0,0.317705]
[1742470202939,0.07816346,85433.0,85432.0,1.823705]
[1742470203134,0.07816346,85433.0,85432.0,0.323705]
[1742470203338,0.07816346,85433.0,85432.0,0.317705]
[1742470203537,0.07816346,85433.0,85432.0,0.311705]
[1742470203854,0.07816346,85433.0,85432.0,0.322705]
[1742470204057,0.096517,85433.0,85432.0,0.317705]
[1742470204623,0.09681769,85433.0,85432.0,0.316705]
[1742470204833,0.09681769,85433.0,85432.0,0.322705]
[1742470205002,0.09681769,85433.0,85432.0,0.311]
[1742470205211,0.14651769,85433.0,85432.0,0.311]
[1742470205355,0.14651769,85433.0,85432.0,0.322705]
[1742470205581,0.14651769,85433.0,85432.0,0.011]
[1742470205781,0.15822269,85433.0,85432.0,0.011]
[1742470206100,0.14651769,85433.0,85432.0,0.022705]
[1742470206730,0.14651769,85433.0,85432.0,0.017705]
[1742470206887,0.14651769,85433.0,85432.0,0.018705]
[1742470207289,0.14651769,85433.0,85432.0,0.012705]
[1742470207621,0.14668709,85433.0,85432.0,0.001]
[1742470207828,0.14668709,85433.0,85432.0,0.003]
[1742470208127,0.38078809,85433.0,85432.0,0.003]
[1742470208337,0.14668709,85433.0,85432.0,0.003]
[1742470208690,0.14668709,85433.0,85432.0,0.014705]
[1742470214974,0.09698709,85433.0,85432.0,0.13428003]
[1742470215185,0.01888709,85433.0,85432.0,0.14882088]
[1742470215332,0.00053355,85433.0,85432.0,0.14882088]
[1742470215908,0.00053355,85433.0,85432.0,1.94882088]
[1742470216355,0.00053355,85433.0,85432.0,1.94782088]
[1742470216560,0.00053355,85433.0,85432.0,1.95082088]
[1742470217028,0.00053355,85433.0,85432.0,1.94882088]
[1742470217229,0.00053355,85433.0,85432.0,1.95282088]
[1742470217525,0.00053355,85433.0,85432.0,1.94982088]
[1742470217751,0.00053355,85433.0,85432.0,1.95182088]
[1742470218097,0.00053355,85433.0,85432.0,1.95782088]
[1742470220885,0.00053355,85433.0,85432.0,1.98146667]
[1742470221782,0.00053355,85433.0,85432.0,1.99343894]
[1742470223314,0.0003388,85450.0,85449.0,0.245759]
[1742470223503,0.00038048,85450.0,85449.0,0.51027488]
[1742470226508,0.00038048,85450.0,85449.0,0.81327488]
[1742470226632,0.00038048,85450.0,85449.0,0.81827488]
[1742470227817,0.00038048,85450.0,85449.0,0.81327488]
[1742470228025,0.0003388,85472.0,85471.0,0.245696]
[1742470228231,0.00039247,85472.0,85471.0,0.37981188]
[1742470229014,0.00039247,85472.0,85471.0,0.51025188]
[1742470229870,0.12469247,85472.0,85470.0,0.245699]
[1742470230079,0.14303926,85472.0,85471.0,0.003]
[1742470230589,0.14303926,85472.0,85471.0,0.008]
[1742470230797,0.12469247,85472.0,85471.0,0.005]
[1742470231017,0.12469247,85472.0,85468.0,0.245703]
[1742470231209,0.12469247,85472.0,85470.0,0.003]
[1742470231735,0.12469247,85472.0,85469.0,0.11957503]
[1742470231941,0.12469247,85472.0,85471.0,0.003]
[1742470233349,0.12469247,85472.0,85471.0,0.001]
[1742470233704,0.14303956,85472.0,85471.0,0.001]
[1742470235278,0.14303956,85472.0,85471.0,0.004]
[1742470235480,0.15473856,85472.0,85471.0,0.004]
[1742470236944,0.14303956,85472.0,85471.0,0.004]
[1742470237059,0.14303956,85472.0,85471.0,0.315699]
[1742470237294,0.14303956,85472.0,85471.0,0.304]
[1742470238291,0.14303956,85472.0,85471.0,0.315699]
[1742470239860,0.14303956,85472.0,85471.0,0.304]
[1742470240264,0.14303956,85472.0,85471.0,0.315699]
[1742470240477,0.09573956,85472.0,85471.0,0.315699]
[1742470241376,0.01873956,85472.0,85471.0,0.43527403]
[1742470241581,0.00039247,85472.0,85471.0,0.43527403]
[1742470241977,0.00039247,85472.0,85471.0,0.004]
[1742470242201,0.01209147,85472.0,85471.0,0.004]
[1742470242412,0.08719147,85472.0,85471.0,0.004]
[1742470242616,0.07549247,85472.0,85471.0,0.015699]
[1742470244552,0.09383899,85472.0,85471.0,0.015699]
[1742470244903,0.01873899,85472.0,85471.0,0.015699]
[1742470248062,0.01873899,85472.0,85471.0,0.43527403]
[1742470248627,0.01873899,85472.0,85471.0,0.44981488]
[1742470250314,0.01873899,85472.0,85471.0,0.44681488]
[1742470250694,0.01873899,85472.0,85471.0,0.45281488]
[1742470251063,0.01873899,85472.0,85471.0,0.318699]
[1742470251276,0.09603899,85472.0,85471.0,0.318699]
[1742470251423,0.07769247,85472.0,85471.0,0.318699]
[1742470251814,0.07769247,85472.0,85471.0,0.317699]
[1742470252342,0.07769247,85472.0,85471.0,0.322699]
[1742470252489,0.07769247,85472.0,85471.0,0.317699]
[1742470252897,0.07769247,85472.0,85471.0,0.321699]
[1742470253555,0.07769247,85472.0,85471.0,0.315699]
[1742470253752,0.07769247,85472.0,85471.0,0.320699]
[1742470254356,0.09603853,85472.0,85471.0,0.320699]
[1742470254971,0.09603853,85472.0,85471.0,0.315699]
[1742470255150,0.09603853,85472.0,85471.0,0.311699]
[1742470255345,0.09603853,85472.0,85471.0,0.314699]
[1742470255763,0.01873853,85472.0,85471.0,0.314699]
[1742470255962,0.01873853,85472.0,85471.0,0.32923985]
[1742470256204,0.01873853,85472.0,85471.0,0.45381488]
[1742470260413,0.01873853,85472.0,85471.0,0.43927403]
[1742470260614,0.01873853,85472.0,85471.0,0.319699]
[1742470261961,0.01873853,85472.0,85471.0,0.45381488]
[1742470262162,0.00039247,85472.0,85471.0,0.45381488]
[1742470264314,0.00039247,85472.0,85471.0,1.95381488]
[1742470264802,0.00039247,85472.0,85471.0,2.07108742]
[1742470265564,0.00039247,85472.0,85471.0,2.08964519]
[1742470265828,0.00039247,85472.0,85471.0,1.94581488]
[1742470265958,0.00039247,85472.0,85471.0,0.56155403]
[1742470266158,0.00039247,85472.0,85471.0,0.56655403]
[1742470266499,0.01873635,85472.0,85471.0,0.58109488]
[1742470266933,0.01873635,85472.0,85471.0,0.58709488]
[1742470269413,0.01873635,85472.0,85471.0,0.45681488]
[1742470269614,0.01873635,85472.0,85471.0,0.58713488]
[1742470272407,0.01873635,85472.0,85471.0,0.44227403]
[1742470273652,0.01873635,85472.0,85471.0,0.43627403]
[1742470273864,0.01873635,85472.0,85471.0,0.42457503]
[1742470274066,0.01873635,85472.0,85471.0,0.44127403]
[1742470274369,0.01873635,85472.0,85471.0,0.43627403]
[1742470274543,0.01873635,85472.0,85471.0,0.44027403]
[1742470276672,0.01873635,85472.0,85471.0,0.309]
[1742470276880,0.00039247,85472.0,85471.0,0.309]
[1742470277428,0.32258547,85472.0,85471.0,0.009]
[1742470277633,0.07689247,85472.0,85471.0,0.009]
[1742470278477,0.07689247,85472.0,85469.0,0.245702]
[1742470278684,0.07689247,85472.0,85471.0,0.001]
[1742470278896,0.00039247,85472.0,85471.0,0.12357503]
[1742470279098,0.00039247,85472.0,85471.0,0.44981488]
[1742470279823,0.01873771,85472.0,85471.0,0.44981488]
[1742470280336,0.01873771,85472.0,85471.0,0.44681488]
[1742470280548,0.01873771,85472.0,85471.0,0.44581488]
[1742470280750,0.01873771,85472.0,85471.0,0.44881488]
[1742470281172,0.01873771,85472.0,85471.0,0.44581488]
[1742470281423,0.01873771,85472.0,85471.0,0.44981488]
[1742470281624,0.01873771,85472.0,85471.0,0.45581488]
[1742470282143,0.01873771,85472.0,85471.0,0.45181488]
[1742470282321,0.01873771,85472.0,85471.0,0.52831488]
[1742470282523,0.01873771,85472.0,85471.0,0.53231488]
[1742470282906,0.01873771,85472.0,85471.0,0.45581488]
[1742470283930,0.00039247,85472.0,85471.0,0.44981488]
[1742470284261,0.0001694,85497.0,85483.0,0.245662]
[1742470284465,0.0007558,85484.0,85483.0,0.81033788]
[1742470284666,8e-07,85484.0,85483.0,0.81033788]
[1742470284800,8e-07,85484.0,85483.0,0.84689146]
[1742470285216,8e-07,85484.0,85483.0,0.87189146]
[1742470285416,8e-07,85484.0,85483.0,2.37589146]
[1742470285661,8e-07,85484.0,85483.0,2.40129102]
[1742470286035,8e-07,85484.0,85483.0,2.40429102]
[1742470286239,8e-07,85484.0,85483.0,2.41029102]
[1742470286954,8e-07,85484.0,85483.0,2.40629102]
[1742470287365,8e-07,85484.0,85483.0,2.41229102]
[1742470287723,8e-07,85484.0,85483.0,2.37573744]
[1742470287921,8e-07,85484.0,85483.0,2.37073744]
[1742470290067,8e-07,85484.0,85483.0,0.84573744]
[1742470290273,8e-07,85484.0,85483.0,0.87073744]
[1742470291053,0.0001701,85484.0,85483.0,0.87073744]
[1742470292921,0.0001701,85484.0,85483.0,0.84573744]
[1742470293122,0.0001701,85484.0,85483.0,0.87073744]
[1742470293340,0.0001701,85484.0,85483.0,0.84573744]
[1742470293548,0.0001701,85484.0,85483.0,0.85437836]
[1742470294120,0.0001701,85484.0,85483.0,2.35437836]
[1742470294356,0.0001701,85484.0,85483.0,2.2004188]
[1742470294563,0.0803,85489.0,85488.0,0.02623785]
[1742470294735,0.0803,85489.0,85488.0,0.14581288]
[1742470295033,0.04107267,85500.0,85499.0,0.011696]
[1742470295247,0.04107267,85500.0,85499.0,0.245616]
[1742470295443,0.00012497,85500.0,85499.0,0.37973188]
[1742470295657,0.00012497,85500.0,85499.0,0.67973188]
[1742470296399,0.00012497,85500.0,85499.0,2.17973188]
[1742470297024,0.01846493,85500.0,85499.0,2.17973188]
[1742470297442,0.01846493,85500.0,85499.0,2.18473188]
[1742470297621,0.01846493,85500.0,85499.0,2.18673188]
[1742470297822,0.01846493,85500.0,85499.0,2.18473188]
[1742470298232,0.01846493,85500.0,85499.0,2.18873188]
[1742470299565,0.01846493,85500.0,85499.0,0.68873188]
[1742470300113,0.01846493,85500.0,85499.0,0.70018924]
[1742470301028,0.01846493,85500.0,85499.0,1.11508924]
[1742470302759,0.01863423,85500.0,85499.0,1.11508924]
[1742470303814,0.10183423,85500.0,85499.0,1.23435188]
[1742470304029,0.08349427,85500.0,85499.0,1.23435188]
[1742470304418,0.08349427,85500.0,85499.0,0.969516]
[1742470304623,0.13109427,85500.0,85499.0,0.969516]
[1742470304813,0.14278927,85500.0,85499.0,0.4239]
[1742470305264,0.13109427,85500.0,85499.0,0.4189]
[1742470305468,0.13109427,85500.0,85499.0,0.4149]
[1742470305820,0.37670727,85500.0,85499.0,0.4169]
[1742470306172,0.37670727,85500.0,85499.0,0.4149]
[1742470306173,0.13109427,85500.0,85499.0,0.4149]
[1742470306327,0.13109427,85500.0,85499.0,0.660516]
[1742470306738,0.13109427,85500.0,85499.0,0.248616]
[1742470307066,0.14943568,85500.0,85499.0,0.248616]
[1742470307214,0.14943568,85500.0,85499.0,0.245616]
[1742470307540,0.14943568,85500.0,85499.0,0.002]
[1742470307705,0.14943568,85500.0,85499.0,0.016696]
[1742470308373,0.14943568,85500.0,85499.0,0.005]
[1742470308779,0.14943568,85500.0,85499.0,0.23892]
[1742470308979,0.14943568,85500.0,85499.0,0.005]
[1742470309655,0.16113068,85500.0,85499.0,0.005]
[1742470310413,0.16113068,85500.0,85499.0,0.002]
[1742470310873,0.011696,85498.0,85493.0,0.311696]
[1742470311281,0.245625,85496.0,85491.0,0.3]
[1742470311452,0.14943568,85500.0,85495.0,0.233929]
[1742470311655,0.13109427,85500.0,85497.0,0.24562]
[1742470311860,0.13109427,85500.0,85499.0,0.245616]
[1742470314266,0.08349427,85500.0,85499.0,0.245616]
[1742470314490,0.10183579,85500.0,85499.0,0.246616]
[1742470314699,0.10183579,85500.0,85499.0,0.248616]
[1742470315772,0.10183579,85500.0,85499.0,0.003]
[1742470316210,0.10183579,85500.0,85499.0,0.014696]
[1742470316416,0.10183579,85500.0,85499.0,0.003]
[1742470317169,0.10183579,85500.0,85499.0,0.014696]
[1742470317774,0.10183579,85500.0,85499.0,0.003]
[1742470318331,0.11353079,85500.0,85499.0,0.003]
[1742470318460,0.16193079,85500.0,85499.0,0.003]
[1742470320350,0.28150582,85500.0,85499.0,0.003]
[1742470320727,0.28150582,85500.0,85483.0,0.0003386]
[1742470320728,0.375159,85484.0,85483.0,0.0003386]
[1742470321141,0.49473403,85484.0,85483.0,0.0003386]
[1742470322890,0.51875137,85484.0,85483.0,0.0003386]
[1742470323046,0.64995137,85484.0,85483.0,0.0003386]
[1742470323722,0.66829901,85484.0,85483.0,0.0003386]
[1742470324260,0.67229901,85484.0,85483.0,0.0003386]
[1742470324457,0.55272398,85484.0,85483.0,0.0003386]
[1742470325033,0.54872398,85484.0,85483.0,0.0003386]
[1742470325242,0.55272398,85484.0,85483.0,0.0003386]
[1742470326149,0.55572398,85484.0,85483.0,0.0003386]
[1742470327331,0.53186664,85484.0,85483.0,0.0003386]
[1742470327910,0.52786664,85484.0,85483.0,0.0003386]
[1742470328295,0.53086664,85484.0,85483.0,0.0003386]
[1742470328522,0.64744167,85484.0,85483.0,0.0003386]
[1742470328931,0.64944167,85484.0,85483.0,0.0003386]
[1742470329840,0.52986664,85484.0,85483.0,0.0003386]
[1742470330049,0.52486664,85484.0,85483.0,0.0003386]
[1742470330452,0.53086664,85484.0,85483.0,0.0003386]
[1742470330945,0.52786664,85484.0,85483.0,0.0003386]
[1742470331136,0.39650664,85484.0,85483.0,0.0003386]
[1742470331356,0.512639,85484.0,85483.0,0.0003386]
[1742470332740,0.381159,85484.0,85483.0,0.0003386]
[1742470334255,0.39950578,85484.0,85483.0,0.0003386]
[1742470338042,0.51908081,85484.0,85483.0,0.0003386]
[1742470340066,0.50073403,85484.0,85483.0,0.0003386]
[1742470343414,0.51908131,85484.0,85483.0,0.0003386]
[1742470343798,0.53090628,85484.0,85483.0,0.0003386]
[1742470343953,0.48140628,85484.0,85483.0,0.0003386]
[1742470344385,0.35000628,85484.0,85483.0,0.0003386]
[1742470344576,0.48136628,85484.0,85483.0,0.0003386]
[1742470347244,0.50327847,85484.0,85483.0,0.0003386]
[1742470350185,0.6228535,85484.0,85483.0,0.0003386]
[1742470350977,0.58259403,85484.0,85483.0,0.0003386]
[1742470353747,0.60094145,85484.0,85483.0,0.0003386]
[1742470354461,0.62290624,85484.0,85483.0,0.0003386]
[1742470361583,0.50333121,85484.0,85483.0,0.0003386]
[1742470366834,0.48136642,85484.0,85483.0,0.0003386]
[1742470369905,0.40096642,85484.0,85483.0,0.0003386]
[1742470370120,0.382619,85484.0,85483.0,0.0003386]
[1742470370888,0.376619,85484.0,85483.0,0.0003386]
[1742470371116,0.378619,85484.0,85483.0,0.0003386]
[1742470371488,0.002,85484.0,85483.0,0.0003386]
[1742470371719,0.002,85484.0,85483.0,0.2343026]
[1742470371892,0.002,85484.0,85483.0,0.41517563]
[1742470372299,0.004,85484.0,85483.0,0.41517563]
[1742470372667,0.002,85484.0,85483.0,0.41517563]
[1742470373316,0.002,85484.0,85483.0,1.35491648]
[1742470373317,0.02034452,85484.0,85483.0,1.35491648]
[1742470373682,0.0001693,85497.0,85496.0,0.676825]
[1742470373895,0.0001693,85497.0,85496.0,1.35684088]
[1742470374100,0.0001693,85497.0,85496.0,1.35584088]
[1742470375781,0.0001693,85497.0,85496.0,1.35784088]
[1742470376219,0.0001693,85497.0,85496.0,1.35584088]
[1742470376592,0.0001693,85497.0,85496.0,1.36184088]
[1742470377142,0.0001693,85497.0,85496.0,1.35584088]
[1742470377717,0.0001693,85497.0,85496.0,2.85984088]
[1742470378073,0.0001693,85497.0,85496.0,2.85584088]
[1742470378250,0.0001693,85497.0,85496.0,2.86184088]
[1742470379375,0.0001693,85497.0,85496.0,1.36784088]
[1742470379561,0.0001693,85497.0,85496.0,1.36184088]
[1742470379973,0.0001693,85497.0,85496.0,1.35584088]
[1742470380589,0.0001693,85497.0,85496.0,1.36184088]
[1742470380934,8.7e-07,85504.0,85503.0,0.011695]
[1742470381173,0.011688,85553.0,85514.0,0.31454085]
[1742470381377,0.245463,85553.0,85514.0,0.57680888]
[1742470381575,0.001,85549.0,85514.0,1.11700888]
[1742470381776,0.011689,85547.0,85514.0,1.11700888]
[1742470382091,0.01169,85538.0,85514.0,1.11700888]
[1742470382317,0.01169,85541.0,85514.0,1.11700888]
[1742470382510,0.245501,85540.0,85514.0,1.11700888]
[1742470382744,0.01169,85540.0,85514.0,1.12893613]
[1742470382948,0.01169,85536.0,85514.0,1.13493613]
[1742470383096,0.011691,85530.0,85514.0,1.13493613]
[1742470383424,0.233837,85530.0,85514.0,1.13493613]
[1742470383694,0.245535,85528.0,85514.0,1.06503613]
[1742470383901,0.09019,85536.0,85514.0,1.06503613]
[1742470384070,0.324012,85536.0,85514.0,1.06503613]
[1742470384297,0.0785,85536.0,85514.0,1.06503613]
[1742470384470,0.0183362,85530.0,85514.0,1.06503613]
[1742470384886,0.0183362,85530.0,85514.0,0.93403613]
[1742470385083,0.011692,85522.0,85514.0,0.54647503]
[1742470385281,0.0183362,85530.0,85514.0,0.79800275]
[1742470385480,0.0183362,85530.0,85514.0,1.09800275]
[1742470385681,0.0183362,85530.0,85514.0,0.79600275]
[1742470385881,0.011692,85526.0,85514.0,0.79600275]
[1742470386081,0.245545,85524.0,85514.0,1.10100275]
[1742470386286,0.245545,85524.0,85514.0,1.08904703]
[1742470386461,0.01833731,85523.0,85514.0,1.08004703]
[1742470386660,0.01833731,85523.0,85514.0,1.08404703]
[1742470386910,0.01833731,85523.0,85514.0,0.78404703]
[1742470387083,0.01833731,85523.0,85514.0,0.78804703]
[1742470387290,0.0785,85536.0,85514.0,1.15038788]
[1742470387697,0.01833732,85527.0,85514.0,1.15038788]
[1742470388083,0.01833732,85527.0,85514.0,2.65038788]
[1742470389232,0.01833732,85527.0,85514.0,2.73298788]
[1742470390407,0.01833732,85527.0,85514.0,2.72898788]
[1742470390522,0.01833732,85527.0,85514.0,2.75773912]
[1742470390721,0.01833732,85527.0,85514.0,2.76944126]
[1742470390930,0.001,85549.0,85518.0,0.011693]
[1742470391257,0.01833568,85536.0,85518.0,1.22802553]
[1742470391429,0.01833568,85536.0,85518.0,1.22568748]
[1742470392409,0.0762,85537.0,85518.0,1.22568748]
[1742470393336,0.0762,85537.0,85518.0,1.23168748]
[1742470393632,0.0762,85537.0,85518.0,1.23768748]
[1742470393829,0.0762,85537.0,85518.0,1.23776748]
[1742470394137,0.0761,85545.0,85518.0,2.74376748]
[1742470394571,0.309895,85545.0,85518.0,2.74376748]
[1742470394789,0.0761,85545.0,85518.0,2.74376748]
[1742470395446,0.01833427,85533.0,85518.0,2.74376748]
[1742470396167,0.0011694,85519.0,85518.0,2.74376748]
[1742470396348,0.0011694,85519.0,85518.0,1.23820413]
[1742470396565,0.0011694,85519.0,85518.0,1.10684413]
[1742470396770,0.0011694,85519.0,85518.0,1.25266498]
[1742470396985,0.0011694,85519.0,85518.0,1.12138498]
[1742470397127,0.0011694,85519.0,85518.0,1.10338498]
[1742470397368,0.0011694,85519.0,85518.0,1.10938498]
[1742470397589,0.0011694,85519.0,85518.0,1.09984413]
[1742470397792,0.0011694,85519.0,85518.0,1.09484413]
[1742470398133,0.0011694,85519.0,85518.0,0.9792691]
[1742470398803,0.0011694,85519.0,85518.0,0.9732691]
[1742470398958,0.0011694,85519.0,85518.0,0.9782691]
[1742470399161,0.2467284,85519.0,85518.0,0.7327081]
[1742470399376,0.0801694,85519.0,85518.0,0.009]
[1742470399580,0.0801694,85519.0,85518.0,0.015693]
[1742470399803,0.0801694,85519.0,85518.0,0.245561]
[1742470400000,0.0801694,85519.0,85518.0,0.249561]
[1742470400200,0.0801694,85519.0,85518.0,0.252561]
[1742470400408,0.0801694,85519.0,85518.0,0.004]
[1742470400589,0.0801694,85519.0,85518.0,0.011693]
[1742470400808,0.0801694,85519.0,85518.0,0.013693]
[1742470402549,0.0801694,85519.0,85518.0,0.005]
[1742470402754,0.0918624,85519.0,85518.0,0.005]
[1742470403155,0.0801694,85519.0,85518.0,0.005]
[1742470403361,0.0801694,85519.0,85518.0,0.250561]
[1742470405272,0.0801694,85519.0,85518.0,0.005]
[1742470405674,0.09850672,85519.0,85518.0,0.005]
[1742470406076,0.09850672,85519.0,85518.0,0.016693]
[1742470408278,0.09850672,85519.0,85518.0,0.02559034]
[1742470409157,0.09850672,85519.0,85518.0,0.01389734]
[1742470409949,0.09850672,85519.0,85518.0,0.02559034]
[1742470410327,0.0011694,85519.0,85518.0,0.02559034]
[1742470410546,0.0011694,85519.0,85518.0,0.46204496]
[1742470410752,0.0011694,85519.0,85518.0,0.59114622]
[1742470414273,0.0011694,85519.0,85518.0,2.09114622]
[1742470415236,0.0011694,85519.0,85518.0,2.50587682]
[1742470415858,0.0011694,85519.0,85518.0,2.50287682]
[1742470416065,0.0011694,85519.0,85518.0,2.50387682]
[1742470416465,0.0011694,85519.0,85518.0,2.50687682]
[1742470416661,0.0011694,85519.0,85518.0,2.50387682]
[1742470416866,0.0011694,85519.0,85518.0,2.50087682]
[1742470417064,0.0011694,85519.0,85518.0,2.50587682]
[1742470417287,0.0011694,85519.0,85518.0,2.51187682]
[1742470434118,0.0011694,85519.0,85518.0,2.59287682]
[1742470436615,0.0011694,85519.0,85518.0,2.51187682]
[1742470437010,0.0011694,85519.0,85518.0,0.86589597]
[1742470437206,0.0011694,85519.0,85518.0,0.99729597]
[1742470437451,0.0011694,85519.0,85518.0,1.01183682]
[1742470438882,0.0011694,85519.0,85518.0,2.51183682]
[1742470440395,0.078,85528.0,85527.0,0.011692]
[1742470440635,0.07812494,85528.0,85527.0,0.13126703]
[1742470440881,0.07812494,85528.0,85527.0,0.36511103]
[1742470441290,0.00012494,85528.0,85527.0,0.36511103]
[1742470441903,0.00012494,85528.0,85527.0,0.37965188]
[1742470442454,0.00029424,85528.0,85527.0,1.87965188]
[1742470442850,0.00029424,85528.0,85527.0,1.88465188]
[1742470444609,0.01862772,85528.0,85527.0,2.29938248]
[1742470447095,0.01862772,85528.0,85527.0,0.79938248]
[1742470447681,0.01862772,85528.0,85527.0,0.93066248]
[1742470448135,0.01862772,85528.0,85527.0,0.91612163]
[1742470448739,0.01862772,85528.0,85527.0,1.20442963]
[1742470448971,0.01862772,85528.0,85527.0,1.21612163]
[1742470450833,0.00029424,85528.0,85527.0,1.21612163]
[1742470451858,0.00029424,85528.0,85527.0,1.08484163]
[1742470452083,0.00029424,85528.0,85527.0,1.21620163]
[1742470453068,0.00029424,85528.0,85527.0,2.71620163]
[1742470453872,0.01862756,85528.0,85527.0,2.71620163]
[1742470455231,0.01862756,85528.0,85527.0,1.21620163]
[1742470455634,0.01862756,85528.0,85527.0,1.08484163]
[1742470455847,0.01862756,85528.0,85527.0,0.83930563]
[1742470456250,0.01862756,85528.0,85527.0,0.7197306]
[1742470456251,0.10122756,85528.0,85527.0,0.7197306]
[1742470456650,0.16111956,85528.0,85527.0,0.305]
[1742470456832,0.16111956,85528.0,85527.0,0.302]
[1742470457033,0.16111956,85528.0,85527.0,0.3]
[1742470457557,0.14942756,85528.0,85527.0,0.301]
[1742470457763,0.14942756,85528.0,85527.0,0.312692]
[1742470458360,0.14942756,85528.0,85527.0,0.315692]
[1742470458773,0.14942756,85528.0,85527.0,0.301]
[1742470459149,0.16111956,85528.0,85527.0,0.003]
[1742470460054,0.39496356,85528.0,85522.0,0.233856]
[1742470460255,0.39496356,85528.0,85522.0,0.245548]
[1742470460568,0.22874,85527.0,85523.0,0.233854]
[1742470460785,0.011692,85522.0,85519.0,0.0003386]
[1742470460955,0.245542,85525.0,85520.0,0.233861]
[1742470461519,0.23385,85525.0,85522.0,0.001]
[1742470462115,0.245546,85524.0,85522.0,0.001]
[1742470462492,0.23385,85525.0,85522.0,0.001]